[Event "Early-Titled-Tuesday-Blitz-October-17-2023"]
[Site "Chess.com"]
[Date "2023.10.17"]
[Round "1"]
[White "ProfessorChess101"]
[Black "mary-sanna"]
[Result "1-0"]
[WhiteElo "2556"]
[BlackElo "2171"]
[TimeControl "180+1"]
[EndTime "8:07:57 PDT"]
[Termination "ProfessorChess101 won on time"]

1. e4 {[%clk 0:02:53.4]} 1... c5 {[%clk 0:03:00]} 2. Nf3 {[%clk 0:02:49.2]} 2...
Nc6 {[%clk 0:03:00.1]} 3. Bd3 {[%clk 0:02:45.3]} 3... e5 {[%clk 0:02:54.1]} 4.
O-O {[%clk 0:02:40.4]} 4... Bd6 {[%clk 0:02:51.4]} 5. c3 {[%clk 0:02:40]} 5...
Nge7 {[%clk 0:02:51]} 6. Bc4 {[%clk 0:02:37.2]} 6... O-O {[%clk 0:02:48.9]} 7.
Re1 {[%clk 0:02:32.8]} 7... a6 {[%clk 0:02:44.6]} 8. a4 {[%clk 0:02:31.2]} 8...
b6 {[%clk 0:02:41.6]} 9. d3 {[%clk 0:02:29.8]} 9... Bc7 {[%clk 0:02:37.1]} 10.
Nbd2 {[%clk 0:02:29.1]} 10... d5 {[%clk 0:02:24.1]} 11. exd5 {[%clk 0:02:28.6]}
11... Nxd5 {[%clk 0:02:25]} 12. Ne4 {[%clk 0:02:25.2]} 12... Bg4 {[%clk
0:02:17.7]} 13. h3 {[%clk 0:02:22.2]} 13... Bh5 {[%clk 0:02:17.9]} 14. Bg5
{[%clk 0:02:20.5]} 14... Qd7 {[%clk 0:02:13.7]} 15. Qe2 {[%clk 0:02:08.4]} 15...
h6 {[%clk 0:02:07.6]} 16. Bxd5 {[%clk 0:02:02.1]} 16... Qxd5 {[%clk 0:02:06.4]}
17. Bxh6 {[%clk 0:02:02.2]} 17... f5 {[%clk 0:01:56.2]} 18. Qe3 {[%clk
0:01:25.8]} 18... f4 {[%clk 0:01:34]} 19. Bxf4 {[%clk 0:01:09.5]} 19... exf4
{[%clk 0:01:32.4]} 20. Qe2 {[%clk 0:01:01.6]} 20... Rad8 {[%clk 0:01:30.2]} 21.
Neg5 {[%clk 0:01:00.5]} 21... Bxf3 {[%clk 0:01:10.8]} 22. Nxf3 {[%clk
0:00:58.5]} 22... Rde8 {[%clk 0:00:59.9]} 23. Qxe8 {[%clk 0:00:54.3]} 23... Rxe8
{[%clk 0:01:00.8]} 24. Rxe8+ {[%clk 0:00:54.4]} 24... Kf7 {[%clk 0:00:56.4]} 25.
Rae1 {[%clk 0:00:53]} 25... Qxd3 {[%clk 0:00:49.1]} 26. Ng5+ {[%clk 0:00:48.7]}
26... Kg6 {[%clk 0:00:47.6]} 27. h4 {[%clk 0:00:43.5]} 27... Ne5 {[%clk
0:00:35]} 28. Ne6 {[%clk 0:00:32.5]} 28... Qd2 {[%clk 0:00:23.4]} 29. Rf1 {[%clk
0:00:22]} 29... Kf7 {[%clk 0:00:22.4]} 30. Nxc7 {[%clk 0:00:21.6]} 30... Ng4
{[%clk 0:00:20.8]} 31. Re4 {[%clk 0:00:17.5]} 31... Qd6 {[%clk 0:00:20]} 32. Ne8
{[%clk 0:00:14.5]} 32... Qb8 {[%clk 0:00:17.5]} 33. Rfe1 {[%clk 0:00:14.2]}
33... f3 {[%clk 0:00:17.3]} 34. Rxg4 {[%clk 0:00:13.7]} 34... fxg2 {[%clk
0:00:17.5]} 35. Kxg2 {[%clk 0:00:14.4]} 35... Qb7+ {[%clk 0:00:17.3]} 36. Kg3
{[%clk 0:00:14.1]} 36... Qb8+ {[%clk 0:00:17.2]} 37. Rf4+ {[%clk 0:00:14.6]}
37... Kg6 {[%clk 0:00:17.1]} 38. Re6+ {[%clk 0:00:15.1]} 38... Kh7 {[%clk
0:00:17.1]} 39. Re7 {[%clk 0:00:15.3]} 39... Kh6 {[%clk 0:00:10.4]} 40. Nxg7
{[%clk 0:00:13.6]} 40... Qg8 {[%clk 0:00:05.6]} 41. Rf6+ {[%clk 0:00:13.7]}
41... Kh7 {[%clk 0:00:05.2]} 42. Kh3 {[%clk 0:00:13.2]} 42... Kh8 {[%clk
0:00:03.6]} 43. Rh6+ {[%clk 0:00:11.9]} 43... Qh7 {[%clk 0:00:02.7]} 44. Nf5
{[%clk 0:00:11.1]} 1-0

[Event "Early-Titled-Tuesday-Blitz-October-17-2023"]
[Site "Chess.com"]
[Date "2023.10.17"]
[Round "1"]
[White "DrCeltic"]
[Black "Ariadna_Atreides"]
[Result "1-0"]
[WhiteElo "2564"]
[BlackElo "2190"]
[TimeControl "180+1"]
[EndTime "8:08:00 PDT"]
[Termination "DrCeltic won on time"]

1. e4 {[%clk 0:02:59.9]} 1... c6 {[%clk 0:03:00]} 2. d4 {[%clk 0:03:00]} 2... d5
{[%clk 0:03:00.5]} 3. exd5 {[%clk 0:03:00.7]} 3... cxd5 {[%clk 0:03:00.5]} 4. c4
{[%clk 0:03:00.9]} 4... e6 {[%clk 0:02:56.2]} 5. Nc3 {[%clk 0:03:00]} 5... Nf6
{[%clk 0:02:55.4]} 6. Nf3 {[%clk 0:03:00.3]} 6... Bb4 {[%clk 0:02:54.2]} 7. cxd5
{[%clk 0:03:00.5]} 7... Nxd5 {[%clk 0:02:53.9]} 8. Bd2 {[%clk 0:03:00.8]} 8...
O-O {[%clk 0:02:53.2]} 9. Bd3 {[%clk 0:03:00.9]} 9... b6 {[%clk 0:02:51.5]} 10.
Qc2 {[%clk 0:02:51]} 10... Bb7 {[%clk 0:02:21.9]} 11. Bxh7+ {[%clk 0:02:48.1]}
11... Kh8 {[%clk 0:02:21.2]} 12. Be4 {[%clk 0:02:47.6]} 12... Nd7 {[%clk
0:02:01.2]} 13. Nxd5 {[%clk 0:02:39.4]} 13... Bxd2+ {[%clk 0:02:00.4]} 14. Qxd2
{[%clk 0:02:22.7]} 14... exd5 {[%clk 0:02:00.5]} 15. Bd3 {[%clk 0:02:21.2]}
15... Re8+ {[%clk 0:01:58.7]} 16. Kf1 {[%clk 0:02:21.3]} 16... Nf6 {[%clk
0:01:34.2]} 17. Ne5 {[%clk 0:02:19.3]} 17... Kg8 {[%clk 0:01:27.9]} 18. h4
{[%clk 0:02:15.1]} 18... Ne4 {[%clk 0:01:25.8]} 19. Qf4 {[%clk 0:02:14.2]} 19...
f6 {[%clk 0:01:12.1]} 20. Nf3 {[%clk 0:02:01.2]} 20... Rc8 {[%clk 0:00:58.4]}
21. h5 {[%clk 0:01:56.6]} 21... Qc7 {[%clk 0:00:54.8]} 22. Qxc7 {[%clk
0:01:31.6]} 22... Rxc7 {[%clk 0:00:53.6]} 23. g3 {[%clk 0:01:27.4]} 23... Bc8
{[%clk 0:00:43.9]} 24. Kg2 {[%clk 0:01:25]} 24... Bf5 {[%clk 0:00:38]} 25. Nh4
{[%clk 0:01:11.5]} 25... Bh7 {[%clk 0:00:29]} 26. Rhe1 {[%clk 0:01:11.3]} 26...
Rce7 {[%clk 0:00:26.6]} 27. Bb5 {[%clk 0:01:10.2]} 27... Rc8 {[%clk 0:00:24.4]}
28. Ng6 {[%clk 0:00:32]} 28... Bxg6 {[%clk 0:00:17.5]} 29. hxg6 {[%clk
0:00:32.9]} 29... Rc2 {[%clk 0:00:17.4]} 30. Re2 {[%clk 0:00:27.8]} 30... Rec7
{[%clk 0:00:15.8]} 31. Bd3 {[%clk 0:00:19.8]} 31... Rxe2 {[%clk 0:00:15.3]} 32.
Bxe2 {[%clk 0:00:20.7]} 32... Rc2 {[%clk 0:00:15]} 33. Kf3 {[%clk 0:00:20.3]}
33... Rxb2 {[%clk 0:00:11.4]} 34. Rc1 {[%clk 0:00:20.4]} 34... Nd2+ {[%clk
0:00:06.9]} 35. Ke3 {[%clk 0:00:18.3]} 35... Nc4+ {[%clk 0:00:07.4]} 36. Bxc4
{[%clk 0:00:18.6]} 36... dxc4 {[%clk 0:00:07.8]} 37. Rxc4 {[%clk 0:00:19.2]}
37... Kf8 {[%clk 0:00:06.9]} 38. Rc8+ {[%clk 0:00:19.4]} 38... Ke7 {[%clk
0:00:06.7]} 39. Rc7+ {[%clk 0:00:20.3]} 39... Kd6 {[%clk 0:00:05.7]} 40. Rxa7
{[%clk 0:00:20.8]} 40... Kd5 {[%clk 0:00:03.3]} 41. Rxg7 {[%clk 0:00:18.6]}
41... Rxa2 {[%clk 0:00:03.5]} 42. Rd7+ {[%clk 0:00:18.3]} 42... Ke6 {[%clk
0:00:02.9]} 43. Rb7 {[%clk 0:00:18.5]} 43... Ra6 {[%clk 0:00:01.5]} 44. g7
{[%clk 0:00:16.9]} 44... Ra8 {[%clk 0:00:01.6]} 45. Rxb6+ {[%clk 0:00:17.4]}
45... Kf7 {[%clk 0:00:01.7]} 46. Rb7+ {[%clk 0:00:17.7]} 46... Kg6 {[%clk
0:00:02.1]} 47. Kf4 {[%clk 0:00:17.7]} 47... Re8 {[%clk 0:00:02.1]} 48. f3
{[%clk 0:00:17.8]} 48... Rd8 {[%clk 0:00:02.3]} 49. Ke4 {[%clk 0:00:17.5]} 49...
f5+ {[%clk 0:00:02.7]} 50. Ke5 {[%clk 0:00:16.7]} 50... Re8+ {[%clk 0:00:03.1]}
51. Kd5 {[%clk 0:00:17.1]} 51... Rd8+ {[%clk 0:00:03.6]} 52. Ke6 {[%clk
0:00:16.6]} 52... Rxd4 {[%clk 0:00:03.4]} 53. g8=Q+ {[%clk 0:00:16.6]} 1-0

[Event "Early-Titled-Tuesday-Blitz-October-17-2023"]
[Site "Chess.com"]
[Date "2023.10.17"]
[Round "1"]
[White "supereagles1201"]
[Black "MKlose11"]
[Result "0-1"]
[WhiteElo "2352"]
[BlackElo "2638"]
[TimeControl "180+1"]
[EndTime "8:08:02 PDT"]
[Termination "MKlose11 won on time"]

1. d4 {[%clk 0:03:00.9]} 1... Nf6 {[%clk 0:02:52.8]} 2. Bg5 {[%clk 0:03:00.4]}
2... c5 {[%clk 0:02:53.7]} 3. d5 {[%clk 0:02:59.7]} 3... g6 {[%clk 0:02:09.2]}
4. Nc3 {[%clk 0:02:58.1]} 4... Bg7 {[%clk 0:01:56.3]} 5. e4 {[%clk 0:02:57.6]}
5... d6 {[%clk 0:01:57.2]} 6. Bb5+ {[%clk 0:02:55.7]} 6... Bd7 {[%clk
0:01:53.1]} 7. a4 {[%clk 0:02:54.9]} 7... O-O {[%clk 0:01:51.9]} 8. Nf3 {[%clk
0:02:53.1]} 8... Bg4 {[%clk 0:01:26.7]} 9. Be2 {[%clk 0:02:52.7]} 9... Na6
{[%clk 0:01:25.6]} 10. O-O {[%clk 0:02:51.1]} 10... Nc7 {[%clk 0:01:19.2]} 11.
Nd2 {[%clk 0:02:49.5]} 11... Bxe2 {[%clk 0:01:18.8]} 12. Qxe2 {[%clk 0:02:50.4]}
12... Rb8 {[%clk 0:01:19.5]} 13. Nc4 {[%clk 0:02:46.8]} 13... b6 {[%clk
0:01:18.6]} 14. Nb5 {[%clk 0:02:32.7]} 14... a6 {[%clk 0:00:47.3]} 15. Na7
{[%clk 0:02:30.5]} 15... Qd7 {[%clk 0:00:39.6]} 16. Nc6 {[%clk 0:02:27.2]} 16...
Rb7 {[%clk 0:00:40]} 17. a5 {[%clk 0:02:19.6]} 17... b5 {[%clk 0:00:24.5]} 18.
Nb6 {[%clk 0:02:18.5]} 18... Qe8 {[%clk 0:00:22.3]} 19. c4 {[%clk 0:02:01.4]}
19... bxc4 {[%clk 0:00:20.3]} 20. Qxc4 {[%clk 0:02:01.1]} 20... h6 {[%clk
0:00:20.8]} 21. Bh4 {[%clk 0:01:55.1]} 21... g5 {[%clk 0:00:20.4]} 22. Bg3
{[%clk 0:01:54]} 22... Nd7 {[%clk 0:00:21.3]} 23. Nxd7 {[%clk 0:01:40.4]} 23...
Qxd7 {[%clk 0:00:22.2]} 24. Rad1 {[%clk 0:01:25.1]} 24... Rxb2 {[%clk 0:00:20]}
25. e5 {[%clk 0:01:25.7]} 25... Qf5 {[%clk 0:00:12.8]} 26. exd6 {[%clk
0:01:22.9]} 26... exd6 {[%clk 0:00:13.7]} 27. Bxd6 {[%clk 0:01:22]} 27... Nxd5
{[%clk 0:00:11.2]} 28. Qxd5 {[%clk 0:01:19]} 28... Qxd5 {[%clk 0:00:11.3]} 29.
Rxd5 {[%clk 0:01:19.5]} 29... Re8 {[%clk 0:00:11.5]} 30. Bxc5 {[%clk 0:01:15.2]}
30... Rb5 {[%clk 0:00:05]} 31. Rfd1 {[%clk 0:01:09.6]} 31... Kh7 {[%clk
0:00:03.9]} 32. Be3 {[%clk 0:01:05.4]} 32... Rc8 {[%clk 0:00:03.4]} 33. Ne7
{[%clk 0:01:01.8]} 33... Rc2 {[%clk 0:00:01.5]} 34. Rxb5 {[%clk 0:00:59.4]}
34... axb5 {[%clk 0:00:02.4]} 35. a6 {[%clk 0:00:58.2]} 35... Ra2 {[%clk
0:00:02.6]} 36. a7 {[%clk 0:00:57.3]} 36... b4 {[%clk 0:00:03.5]} 37. Nf5 {[%clk
0:00:38.5]} 37... b3 {[%clk 0:00:03.7]} 38. Nxg7 {[%clk 0:00:38.6]} 38... b2
{[%clk 0:00:03.7]} 39. Kf1 {[%clk 0:00:18.2]} 39... Ra1 {[%clk 0:00:04.2]} 40.
a8=Q {[%clk 0:00:11.1]} 40... Rxd1+ {[%clk 0:00:03.9]} 41. Ke2 {[%clk
0:00:11.1]} 41... b1=Q {[%clk 0:00:04.8]} 42. Nh5 {[%clk 0:00:06.7]} 42... Qd3+
{[%clk 0:00:04.5]} 43. Kf3 {[%clk 0:00:06.7]} 43... Qf5+ {[%clk 0:00:03.3]} 44.
Kg3 {[%clk 0:00:06.4]} 44... Qe5+ {[%clk 0:00:03.4]} 45. Kh3 {[%clk 0:00:05.5]}
45... Qe6+ {[%clk 0:00:03.5]} 46. g4 {[%clk 0:00:04.4]} 46... Qd6 {[%clk
0:00:04.2]} 47. Qe4+ {[%clk 0:00:03.2]} 47... Qg6 {[%clk 0:00:04.2]} 48. Qxg6+
{[%clk 0:00:02.7]} 48... fxg6 {[%clk 0:00:05.1]} 49. Nf6+ {[%clk 0:00:02.8]}
49... Kg7 {[%clk 0:00:05.8]} 50. Ne4 {[%clk 0:00:03.1]} 50... Kf7 {[%clk
0:00:06.2]} 51. Kg3 {[%clk 0:00:03.2]} 51... Ra1 {[%clk 0:00:06.8]} 52. h4
{[%clk 0:00:01.8]} 52... Ra3 {[%clk 0:00:07.5]} 53. hxg5 {[%clk 0:00:01.2]}
53... hxg5 {[%clk 0:00:08.2]} 54. Nxg5+ {[%clk 0:00:01.4]} 54... Kg7 {[%clk
0:00:09.1]} 55. Ne4 {[%clk 0:00:01.7]} 55... Ra4 {[%clk 0:00:06]} 0-1

[Event "Early-Titled-Tuesday-Blitz-October-17-2023"]
[Site "Chess.com"]
[Date "2023.10.17"]
[Round "1"]
[White "ckgchess"]
[Black "Truequitos"]
[Result "1/2-1/2"]
[WhiteElo "2902"]
[BlackElo "2518"]
[TimeControl "180+1"]
[EndTime "8:08:05 PDT"]
[Termination "Game drawn - insufficient material"]

1. e4 {[%clk 0:03:00.9]} 1... e6 {[%clk 0:02:58.8]} 2. d4 {[%clk 0:02:58.7]}
2... d5 {[%clk 0:02:59]} 3. Nd2 {[%clk 0:02:59.3]} 3... c5 {[%clk 0:02:58.6]} 4.
Ngf3 {[%clk 0:02:59.1]} 4... cxd4 {[%clk 0:02:58.9]} 5. exd5 {[%clk 0:02:55.9]}
5... Qxd5 {[%clk 0:02:59.8]} 6. Bc4 {[%clk 0:02:56.3]} 6... Qd6 {[%clk
0:03:00.4]} 7. O-O {[%clk 0:02:56.6]} 7... Nf6 {[%clk 0:03:01]} 8. Nb3 {[%clk
0:02:56.6]} 8... Nc6 {[%clk 0:03:01.7]} 9. Qe2 {[%clk 0:02:55.9]} 9... Be7
{[%clk 0:02:59.1]} 10. Rd1 {[%clk 0:02:56]} 10... Qc7 {[%clk 0:02:58]} 11. Nbxd4
{[%clk 0:02:52.9]} 11... Nxd4 {[%clk 0:02:58.9]} 12. Rxd4 {[%clk 0:02:53.2]}
12... O-O {[%clk 0:02:53.1]} 13. Bf4 {[%clk 0:02:53.3]} 13... Qc5 {[%clk
0:02:50.8]} 14. Be3 {[%clk 0:02:23]} 14... Qa5 {[%clk 0:02:36.3]} 15. Rad1
{[%clk 0:02:08.4]} 15... a6 {[%clk 0:02:10.6]} 16. Rh4 {[%clk 0:01:55.7]} 16...
Bd7 {[%clk 0:01:37.2]} 17. Bd4 {[%clk 0:01:49.1]} 17... Bb5 {[%clk 0:01:27.9]}
18. Bxb5 {[%clk 0:01:34.2]} 18... Qxb5 {[%clk 0:01:26.5]} 19. Qxb5 {[%clk
0:01:34.6]} 19... axb5 {[%clk 0:01:27.3]} 20. a3 {[%clk 0:01:35]} 20... Nd5
{[%clk 0:01:25.6]} 21. Rg4 {[%clk 0:01:34.3]} 21... g6 {[%clk 0:01:24.6]} 22.
Be5 {[%clk 0:01:23]} 22... f6 {[%clk 0:01:21]} 23. Bg3 {[%clk 0:01:20.7]} 23...
f5 {[%clk 0:01:21.4]} 24. Rgd4 {[%clk 0:01:19.8]} 24... Rfc8 {[%clk 0:01:13.5]}
25. c3 {[%clk 0:01:18.8]} 25... Bc5 {[%clk 0:01:01.4]} 26. R4d2 {[%clk
0:01:16.5]} 26... f4 {[%clk 0:00:59.9]} 27. Bh4 {[%clk 0:01:16.6]} 27... h6
{[%clk 0:01:00.6]} 28. Re2 {[%clk 0:01:08.6]} 28... Re8 {[%clk 0:00:46.6]} 29.
Re5 {[%clk 0:00:36.2]} 29... Bd6 {[%clk 0:00:31.9]} 30. Rexd5 {[%clk 0:00:31]}
30... exd5 {[%clk 0:00:32.8]} 31. Bf6 {[%clk 0:00:31.8]} 31... Re2 {[%clk
0:00:27.8]} 32. Rxd5 {[%clk 0:00:31.7]} 32... Rae8 {[%clk 0:00:27.4]} 33. h4
{[%clk 0:00:31.2]} 33... Bf8 {[%clk 0:00:18.1]} 34. Rxb5 {[%clk 0:00:31.1]}
34... b6 {[%clk 0:00:18.4]} 35. Bd4 {[%clk 0:00:30.7]} 35... Bc5 {[%clk
0:00:17.7]} 36. b4 {[%clk 0:00:16.6]} 36... Bxd4 {[%clk 0:00:17.1]} 37. Nxd4
{[%clk 0:00:17.5]} 37... Rd2 {[%clk 0:00:16.4]} 38. Rxb6 {[%clk 0:00:17.8]}
38... Re1+ {[%clk 0:00:16.4]} 39. Kh2 {[%clk 0:00:18.5]} 39... Rxf2 {[%clk
0:00:16.8]} 40. Rxg6+ {[%clk 0:00:18.3]} 40... Kh7 {[%clk 0:00:17.4]} 41. Re6
{[%clk 0:00:17.6]} 41... Rxe6 {[%clk 0:00:16.6]} 42. Nxe6 {[%clk 0:00:18.5]}
42... f3 {[%clk 0:00:17.3]} 43. Nf4 {[%clk 0:00:16.5]} 43... fxg2 {[%clk
0:00:14.2]} 44. Nxg2 {[%clk 0:00:17.4]} 44... Rf3 {[%clk 0:00:14.9]} 45. c4
{[%clk 0:00:16.7]} 45... Rxa3 {[%clk 0:00:14.9]} 46. Nf4 {[%clk 0:00:12.1]}
46... Rc3 {[%clk 0:00:12.6]} 47. c5 {[%clk 0:00:10.9]} 47... Rc4 {[%clk
0:00:13.2]} 48. Nd5 {[%clk 0:00:09.9]} 48... Rd4 {[%clk 0:00:13.8]} 49. Ne3
{[%clk 0:00:04.3]} 49... Rxb4 {[%clk 0:00:13.1]} 50. Kg3 {[%clk 0:00:04.6]}
50... Kg6 {[%clk 0:00:11.9]} 51. c6 {[%clk 0:00:03.3]} 51... Rb3 {[%clk
0:00:10.9]} 52. Kf4 {[%clk 0:00:03.7]} 52... Rc3 {[%clk 0:00:11.5]} 53. Nd5
{[%clk 0:00:04.5]} 53... Rc4+ {[%clk 0:00:10.4]} 54. Ke5 {[%clk 0:00:04.8]}
54... Kh5 {[%clk 0:00:07.3]} 55. c7 {[%clk 0:00:04.8]} 55... Rxc7 {[%clk
0:00:07.5]} 56. Nxc7 {[%clk 0:00:05.1]} 56... Kxh4 {[%clk 0:00:08.4]} 57. Nd5
{[%clk 0:00:05.9]} 57... Kg3 {[%clk 0:00:09.1]} 58. Nf6 {[%clk 0:00:06.4]} 58...
h5 {[%clk 0:00:10]} 59. Nxh5+ {[%clk 0:00:07.1]} 1/2-1/2

[Event "Early-Titled-Tuesday-Blitz-October-17-2023"]
[Site "Chess.com"]
[Date "2023.10.17"]
[Round "1"]
[White "Levanzovsky"]
[Black "KNVB"]
[Result "0-1"]
[WhiteElo "2412"]
[BlackElo "2692"]
[TimeControl "180+1"]
[EndTime "8:08:15 PDT"]
[Termination "KNVB won by resignation"]

1. e4 {[%clk 0:03:00.1]} 1... e5 {[%clk 0:02:56.7]} 2. Nf3 {[%clk 0:02:59.6]}
2... Nc6 {[%clk 0:02:54.2]} 3. Bc4 {[%clk 0:02:57.6]} 3... Nf6 {[%clk
0:02:51.9]} 4. d3 {[%clk 0:02:57.4]} 4... h6 {[%clk 0:02:51.1]} 5. h3 {[%clk
0:02:52.6]} 5... d6 {[%clk 0:02:45.4]} 6. Nc3 {[%clk 0:02:49.3]} 6... Na5 {[%clk
0:02:40.4]} 7. O-O {[%clk 0:02:46.9]} 7... Nxc4 {[%clk 0:02:04]} 8. dxc4 {[%clk
0:02:47]} 8... Be6 {[%clk 0:02:04.7]} 9. b3 {[%clk 0:02:43.2]} 9... c6 {[%clk
0:02:00.3]} 10. c5 {[%clk 0:02:38.6]} 10... dxc5 {[%clk 0:01:40.3]} 11. Nxe5
{[%clk 0:02:38.7]} 11... Qd4 {[%clk 0:01:40.2]} 12. Qxd4 {[%clk 0:02:34.2]}
12... cxd4 {[%clk 0:01:41.1]} 13. Ne2 {[%clk 0:02:34.3]} 13... c5 {[%clk
0:01:13.7]} 14. f3 {[%clk 0:02:34.7]} 14... Nd7 {[%clk 0:00:57.4]} 15. Nd3
{[%clk 0:02:33.9]} 15... g5 {[%clk 0:00:57.9]} 16. Ba3 {[%clk 0:02:33]} 16... c4
{[%clk 0:00:48.1]} 17. Nb4 {[%clk 0:01:56.2]} 17... a5 {[%clk 0:00:44.2]} 18.
Nd5 {[%clk 0:01:56.8]} 18... Bxa3 {[%clk 0:00:36.2]} 19. Nc7+ {[%clk 0:01:56.8]}
19... Ke7 {[%clk 0:00:35.2]} 20. Nxa8 {[%clk 0:01:57.7]} 20... Rxa8 {[%clk
0:00:18.5]} 21. Nxd4 {[%clk 0:01:56.2]} 21... Bc5 {[%clk 0:00:17.2]} 22. c3
{[%clk 0:01:56.8]} 22... cxb3 {[%clk 0:00:16.1]} 23. axb3 {[%clk 0:01:57.7]}
23... Bxb3 {[%clk 0:00:16.4]} 24. Rfb1 {[%clk 0:01:53.9]} 24... a4 {[%clk
0:00:13.7]} 25. Kf1 {[%clk 0:01:41.7]} 25... Bxd4 {[%clk 0:00:13.8]} 26. cxd4
{[%clk 0:01:41.7]} 26... Nb6 {[%clk 0:00:14.3]} 27. Ke2 {[%clk 0:01:38.9]} 27...
Rc8 {[%clk 0:00:08.3]} 28. Rc1 {[%clk 0:01:29.8]} 28... Rxc1 {[%clk 0:00:08]}
29. Rxc1 {[%clk 0:01:30.7]} 29... Nc4 {[%clk 0:00:08.6]} 30. Kd3 {[%clk
0:01:30.7]} 30... b5 {[%clk 0:00:08.8]} 31. Kc3 {[%clk 0:01:30.6]} 31... Kd6
{[%clk 0:00:08.2]} 32. Kb4 {[%clk 0:01:30.6]} 32... Kc6 {[%clk 0:00:07.8]} 33.
Rc3 {[%clk 0:01:29.3]} 33... Kb6 {[%clk 0:00:03.8]} 34. d5 {[%clk 0:01:30]}
34... f6 {[%clk 0:00:03.2]} 35. g3 {[%clk 0:01:29.5]} 35... Bd1 {[%clk
0:00:02.2]} 36. f4 {[%clk 0:01:29.8]} 36... gxf4 {[%clk 0:00:02.1]} 37. gxf4
{[%clk 0:01:30.7]} 37... a3 {[%clk 0:00:02.6]} 38. Rc1 {[%clk 0:01:27.9]} 38...
Bf3 {[%clk 0:00:02.6]} 39. Re1 {[%clk 0:01:12.2]} 39... a2 {[%clk 0:00:02.2]}
40. Kb3 {[%clk 0:01:10.1]} 40... Bxe4 {[%clk 0:00:02]} 41. Kxa2 {[%clk
0:01:10.6]} 41... Bxd5 {[%clk 0:00:02.3]} 42. Kb1 {[%clk 0:01:10.6]} 42... Kc5
{[%clk 0:00:02.4]} 43. Re7 {[%clk 0:01:10]} 43... Nd2+ {[%clk 0:00:02.1]} 44.
Kc2 {[%clk 0:01:10]} 44... Ne4 {[%clk 0:00:02.2]} 45. Kd3 {[%clk 0:01:10.2]}
45... Nf2+ {[%clk 0:00:02.5]} 46. Ke3 {[%clk 0:01:08.1]} 46... Nxh3 {[%clk
0:00:03.4]} 47. Rh7 {[%clk 0:01:07.7]} 47... Ng1 {[%clk 0:00:02.2]} 48. Rxh6
{[%clk 0:01:07.9]} 48... f5 {[%clk 0:00:02.3]} 49. Rh8 {[%clk 0:00:52.8]} 49...
Be4 {[%clk 0:00:02.4]} 50. Rc8+ {[%clk 0:00:52.4]} 50... Kd5 {[%clk 0:00:02.6]}
51. Rc3 {[%clk 0:00:35]} 51... Nf3 {[%clk 0:00:02.7]} 52. Rc1 {[%clk 0:00:35.9]}
52... b4 {[%clk 0:00:02.8]} 53. Rc8 {[%clk 0:00:34]} 53... Nh4 {[%clk
0:00:02.9]} 54. Rb8 {[%clk 0:00:20.9]} 54... Ng2+ {[%clk 0:00:03.8]} 55. Kd2
{[%clk 0:00:20.4]} 55... Kc4 {[%clk 0:00:04.7]} 56. Rc8+ {[%clk 0:00:20.5]}
56... Kb3 {[%clk 0:00:05.4]} 57. Rc1 {[%clk 0:00:18]} 57... Nxf4 {[%clk
0:00:05.9]} 58. Ke3 {[%clk 0:00:18.9]} 58... Nd5+ {[%clk 0:00:06.2]} 59. Kd4
{[%clk 0:00:19.1]} 59... Nc3 {[%clk 0:00:06.9]} 60. Rf1 {[%clk 0:00:18.6]} 60...
Ne2+ {[%clk 0:00:05.4]} 61. Kc5 {[%clk 0:00:18.4]} 61... Ng3 {[%clk 0:00:04]}
62. Rf2 {[%clk 0:00:18.6]} 62... Kc3 {[%clk 0:00:04.3]} 63. Rh2 {[%clk
0:00:16.8]} 63... b3 {[%clk 0:00:04.5]} 64. Rh3 {[%clk 0:00:17.5]} 64... f4
{[%clk 0:00:05.3]} 65. Kb5 {[%clk 0:00:16.5]} 65... b2 {[%clk 0:00:05.7]} 66.
Ka4 {[%clk 0:00:17.4]} 66... b1=Q {[%clk 0:00:05.4]} 67. Rxg3+ {[%clk
0:00:17.9]} 67... fxg3 {[%clk 0:00:05.6]} 0-1